fUST/lending_fUST_20240723
["ID","MTS","AMOUNT","RATE_DAILY","PERIOD"]
[332951364,1721701851393,-500.0,0.00013698,2]
[332951365,1721701851402,-500.0,0.00013698,2]
[332951366,1721701851413,-500.0,0.00013698,2]
[332951367,1721701851423,-500.0,0.00013698,2]
[332951368,1721701851433,-500.0,0.00013698,2]
[332951369,1721701851443,-500.0,0.00013698,2]
[332951370,1721701851452,-500.0,0.00013698,2]
[332951371,1721701851461,-500.0,0.00013698,2]
[332951372,1721701851471,-500.0,0.00013698,2]
[332951373,1721701851481,-500.0,0.00013698,2]
[332951374,1721701851491,-500.0,0.00013698,2]
[332951375,1721701851501,-500.0,0.00013698,2]
[332951376,1721701851512,-500.0,0.00013698,2]
[332951377,1721701851522,-289.22,0.00013698,2]
[332951378,1721701851532,-500.0,0.00013698,2]
[332951379,1721701851542,-500.0,0.00013698,2]
[332951380,1721701851552,-500.0,0.00013698,2]
[332951381,1721701851562,-500.0,0.00013698,2]
[332951382,1721701851571,-500.0,0.00013698,2]
[332951383,1721701851581,-500.0,0.00013698,2]
[332951384,1721701851591,-500.0,0.00013698,2]
[332951385,1721701851601,-500.0,0.00013698,2]
[332951386,1721701851615,-500.0,0.00013698,2]
[332951387,1721701851624,-500.0,0.00013698,2]
[332951388,1721701851635,-500.0,0.00013698,2]
[332951389,1721701851645,-538.62111057,0.00013698,2]
[332951390,1721701851828,-500.0,0.00013698,2]
[332951391,1721701851838,-500.0,0.00013698,2]
[332951392,1721701851848,-500.0,0.00013698,2]
[332951393,1721701851858,-500.0,0.00013698,2]
[332951394,1721701851868,-500.0,0.00013698,2]
[332951395,1721701851878,-500.0,0.00013698,2]
[332951396,1721701851888,-500.0,0.00013698,2]
[332951397,1721701851898,-500.0,0.00013698,2]
[332951398,1721701851907,-500.0,0.00013698,2]
[332951399,1721701851917,-500.0,0.00013698,2]
[332951400,1721701851927,-500.0,0.00013698,2]
[332951401,1721701851938,-500.0,0.00013698,2]
[332951402,1721701851948,-500.0,0.00013698,2]
[332951403,1721701851958,-500.0,0.00013698,2]
[332951404,1721701851968,-618.09156347,0.00013698,2]
[332951405,1721701851978,-500.0,0.00013698,2]
[332951406,1721701851987,-500.0,0.00013698,2]
[332951407,1721701852000,-500.0,0.00013698,2]
[332951408,1721701852010,-500.0,0.00013698,2]
[332951409,1721701852019,-500.0,0.00013698,2]
[332951410,1721701852028,-500.0,0.00013698,2]
[332951411,1721701852039,-500.0,0.00013698,2]
[332951412,1721701852048,-181.67218136,0.00013698,2]
[332951413,1721701852058,-500.0,0.00013698,2]
[332951414,1721701852068,-500.0,0.00013698,2]
[332951415,1721701852078,-500.0,0.00013698,2]
[332951416,1721701852088,-504.35,0.00013698,2]
[332951417,1721701852097,-500.0,0.00013698,2]
[332951418,1721701852107,-500.0,0.00013698,2]
[332951419,1721701852117,-500.0,0.00013698,2]
[332951420,1721701852126,-500.0,0.00013698,2]
[332951421,1721701852136,-500.0,0.00013698,2]
[332951422,1721701852146,-500.0,0.00013698,2]
[332951423,1721701852157,-500.0,0.00013698,2]
[332951424,1721701852166,-500.0,0.00013698,2]
[332951425,1721701852176,-503.64069599,0.00013698,2]
[332951426,1721701852186,-500.0,0.00013698,2]
[332951427,1721701852195,-500.0,0.00013698,2]
[332951428,1721701852205,-500.0,0.00013698,2]
[332951429,1721701852216,-500.0,0.00013698,2]
[332951430,1721701852226,-500.0,0.00013698,2]
[332951431,1721701852236,-500.0,0.00013698,2]
[332951432,1721701852246,-500.0,0.00013698,2]
[332951433,1721701852256,-500.0,0.00013698,2]
[332951434,1721701852265,-500.0,0.00013698,2]
[332951435,1721701852274,-500.0,0.00013698,2]
[332951436,1721701852284,-500.0,0.00013698,2]
[332951437,1721701852294,-500.0,0.00013698,2]
[332951438,1721701852304,-500.0,0.00013698,2]
[332951439,1721701852314,-500.0,0.00013698,2]
[332951440,1721701852323,-500.0,0.00013698,2]
[332951441,1721701852333,-500.0,0.00013698,2]
[332951442,1721701852343,-500.0,0.00013698,2]
[332951443,1721701852352,-500.0,0.00013698,2]
[332951444,1721701852363,-500.0,0.00013698,2]
[332951445,1721701852372,-500.0,0.00013698,2]
[332951446,1721701852383,-500.0,0.00013698,2]
[332951447,1721701852393,-500.0,0.00013698,2]
[332951448,1721701852403,-500.0,0.00013698,2]
[332951449,1721701852412,-500.0,0.00013698,2]
[332951450,1721701852422,-500.0,0.00013698,2]
[332951451,1721701852432,-500.0,0.00013698,2]
[332951452,1721701852442,-493.75174484,0.00013698,2]
[332951453,1721701852452,-500.0,0.00013698,2]
[332951454,1721701852462,-500.0,0.00013698,2]
[332951455,1721701852472,-500.0,0.00013698,2]
[332951456,1721701852482,-500.0,0.00013698,2]
[332951457,1721701852492,-500.0,0.00013698,2]
[332951458,1721701852501,-500.0,0.00013698,2]
[332951459,1721701852511,-500.0,0.00013698,2]
[332951460,1721701852520,-500.0,0.00013698,2]
[332951461,1721701852530,-500.0,0.00013698,2]
[332951462,1721701852539,-500.0,0.00013698,2]
[332951463,1721701852549,-500.0,0.00013698,2]
[332951464,1721701852559,-500.0,0.00013698,2]
[332951465,1721701852569,-500.0,0.00013698,2]
[332951466,1721701852578,-500.0,0.00013698,2]
[332951467,1721701852588,-503.5645159,0.00013698,2]
[332951468,1721701852598,-500.0,0.00013698,2]
[332951469,1721701852611,-500.0,0.00013698,2]
[332951470,1721701852621,-516.26409766,0.00013698,2]
[332951471,1721701852633,-500.0,0.00013698,2]
[332951472,1721701852642,-500.0,0.00013698,2]
[332951473,1721701852652,-500.0,0.00013698,2]
[332951474,1721701852665,-500.0,0.00013698,2]
[332951475,1721701852674,-500.0,0.00013698,2]
[332951476,1721701852684,-500.0,0.00013698,2]
[332951477,1721701852693,-500.0,0.00013698,2]
[332951478,1721701852702,-500.0,0.00013698,2]
[332951479,1721701852711,-500.0,0.00013698,2]
[332951480,1721701852721,-500.0,0.00013698,2]
[332951481,1721701852731,-500.0,0.00013698,2]
[332951482,1721701852740,-500.0,0.00013698,2]
[332951483,1721701852750,-502.68517717,0.00013698,2]
[332951484,1721701852759,-616.18342409,0.00013698,2]
[332951485,1721701852769,-1600.02,0.00013698,2]
[332951486,1721701852779,-500.0,0.00013698,2]
[332951487,1721701852788,-500.0,0.00013698,2]
[332951488,1721701852799,-500.0,0.00013698,2]
[332951489,1721701852808,-500.0,0.00013698,2]
[332951490,1721701852817,-500.0,0.00013698,2]
[332951491,1721701852827,-500.0,0.00013698,2]
[332951492,1721701852838,-500.0,0.00013698,2]
[332951493,1721701852847,-500.0,0.00013698,2]
[332951494,1721701852857,-500.0,0.00013698,2]
[332951495,1721701852866,-500.0,0.00013698,2]
[332951496,1721701852876,-500.0,0.00013698,2]
[332951497,1721701852885,-500.0,0.00013698,2]
[332951498,1721701852895,-500.0,0.00013698,2]
[332951499,1721701852904,-500.0,0.00013698,2]
[332951500,1721701852914,-500.0,0.00013698,2]
[332951501,1721701852924,-500.0,0.00013698,2]
[332951502,1721701852933,-500.0,0.00013698,2]
[332951503,1721701852943,-567.91475549,0.00013698,2]
[332951504,1721701852952,-500.0,0.00013698,2]
[332951505,1721701852962,-500.0,0.00013698,2]
[332951506,1721701852972,-500.0,0.00013698,2]
[332951507,1721701852981,-500.0,0.00013698,2]
[332951508,1721701852991,-500.0,0.00013698,2]
[332951509,1721701853000,-500.0,0.00013698,2]
[332951510,1721701853010,-500.0,0.00013698,2]
[332951511,1721701853019,-500.0,0.00013698,2]
[332951512,1721701853028,-500.0,0.00013698,2]
[332951513,1721701853037,-500.0,0.00013698,2]
[332951514,1721701853048,-500.42939411,0.00013698,2]
[332951515,1721701853057,-500.0,0.00013698,2]
[332951516,1721701853066,-647.68,0.00013698,2]
[332951517,1721701853076,-500.0,0.00013698,2]
[332951518,1721701853085,-500.0,0.00013698,2]
[332951519,1721701853095,-500.0,0.00013698,2]
[332951520,1721701853105,-500.0,0.00013698,2]
[332951521,1721701853115,-500.0,0.00013698,2]
[332951522,1721701853124,-543.31571921,0.00013698,2]
[332951523,1721701853133,-500.0,0.00013698,2]
[332951524,1721701853143,-500.0,0.00013698,2]
[332951525,1721701853152,-500.0,0.00013698,2]
[332951526,1721701853161,-500.0,0.00013698,2]
[332951527,1721701853170,-500.0,0.00013698,2]
[332951528,1721701853179,-500.0,0.00013698,2]
[332951529,1721701853188,-500.0,0.00013698,2]
[332951530,1721701853198,-500.0,0.00013698,2]
[332951531,1721701853207,-500.0,0.00013698,2]
[332951532,1721701853216,-500.0,0.00013698,2]
[332951533,1721701853226,-500.0,0.00013698,2]
[332951534,1721701853235,-500.0,0.00013698,2]
[332951535,1721701853245,-500.0,0.00013698,2]
[332951536,1721701853255,-500.0,0.00013698,2]
[332951537,1721701853264,-500.0,0.00013698,2]
[332951538,1721701853274,-500.0,0.00013698,2]
[332951539,1721701853284,-500.0,0.00013698,2]
[332951540,1721701853293,-500.0,0.00013698,2]
[332951541,1721701853302,-500.0,0.00013698,2]
[332951542,1721701853312,-513.80969609,0.00013698,2]
[332951543,1721701853321,-500.0,0.00013698,2]
[332951544,1721701853330,-500.0,0.00013698,2]
[332951545,1721701853339,-501.8269639,0.00013698,2]
[332951546,1721701853349,-500.0,0.00013698,2]
[332951547,1721701853358,-500.0,0.00013698,2]
[332951548,1721701853368,-500.0,0.00013698,2]
[332951549,1721701853377,-500.0,0.00013698,2]
[332951550,1721701853386,-500.0,0.00013698,2]
[332951551,1721701853395,-570.59373138,0.00013698,2]
[332951552,1721701853405,-512.30158509,0.00013698,2]
[332951553,1721701853415,-536.07823364,0.00013698,2]
[332951554,1721701853424,-500.0,0.00013698,2]
[332951555,1721701853433,-500.0,0.00013698,2]
[332951556,1721701853443,-500.0,0.00013698,2]
[332951557,1721701853452,-500.0,0.00013698,2]
[332951558,1721701853462,-515.59639919,0.00013698,2]
[332951559,1721701853471,-438.02356023,0.00013698,2]
[332951560,1721701853481,-500.0,0.00013698,2]
[332951561,1721701853491,-500.0,0.00013698,2]
[332951562,1721701853500,-528.67669487,0.00013698,2]
[332951563,1721701853510,-500.0,0.00013698,2]
[332951564,1721701853519,-500.0,0.00013698,2]
[332951565,1721701853528,-500.0,0.00013698,2]
[332951566,1721701853538,-500.0,0.00013698,2]
[332951567,1721701853547,-500.0,0.00013698,2]
[332951568,1721701853556,-500.0,0.00013698,2]
[332951569,1721701853565,-500.0,0.00013698,2]
[332951570,1721701853575,-232.94306869,0.00013698,2]
[332951571,1721701853584,-500.0,0.00013698,2]
[332951572,1721701853593,-500.0,0.00013698,2]
[332951573,1721701853603,-613.50607496,0.00013698,2]
[332951574,1721701853614,-500.0,0.00013698,2]
[332951575,1721701853623,-500.0,0.00013698,2]
[332951576,1721701853634,-323.34888388,0.00013698,2]
[332951577,1721701853643,-500.0,0.00013698,2]
[332951578,1721701853654,-619.08566216,0.00013698,2]
[332951579,1721701853663,-500.0,0.00013698,2]
[332951580,1721701853673,-500.0,0.00013698,2]
[332951581,1721701853684,-500.0,0.00013698,2]
[332951582,1721701853693,-500.0,0.00013698,2]
[332951583,1721701853702,-538.74851506,0.00013698,2]
[332951584,1721701853712,-500.0,0.00013698,2]
[332951585,1721701853721,-512.58491509,0.00013698,2]
[332951586,1721701853730,-500.0,0.00013698,2]
[332951587,1721701853739,-500.0,0.00013698,2]
[332951588,1721701853748,-500.0,0.00013698,2]
[332951589,1721701853758,-500.0,0.00013698,2]
[332951590,1721701853767,-500.0,0.00013698,2]
[332951591,1721701853777,-476.28410891,0.00013698,2]
[332951592,1721701853787,-625.68386016,0.00013698,2]
[332951593,1721701853796,-500.0,0.00013698,2]
[332951594,1721701853805,-501.89306793,0.00013698,2]
[332951595,1721701853814,-500.0,0.00013698,2]
[332951596,1721701853824,-500.0,0.00013698,2]
[332951597,1721701853833,-500.0,0.00013698,2]
[332951598,1721701853842,-500.0,0.00013698,2]
[332951599,1721701853851,-500.0,0.00013698,2]
[332951600,1721701853861,-500.0,0.00013698,2]
[332951601,1721701853870,-500.0,0.00013698,2]
[332951602,1721701853880,-500.0,0.00013698,2]
[332951603,1721701853889,-500.0,0.00013698,2]
[332951604,1721701853898,-524.75018145,0.00013698,2]
[332951605,1721701853909,-500.0,0.00013698,2]
[332951606,1721701853918,-500.0,0.00013698,2]
[332951607,1721701853927,-500.43133215,0.00013698,2]
[332951608,1721701853936,-587.45150463,0.00013698,2]
[332951609,1721701853946,-500.87085589,0.00013698,2]
[332951610,1721701853955,-155.35426311,0.00013698,2]
[332951611,1721701853964,-197.46720704,0.00013698,2]
[332951612,1721701853973,-434.04870899,0.00013698,2]
[332951613,1721701853982,-205.87500358,0.00013698,2]
[332951614,1721701853992,-1044.28,0.00013698,2]
[332951615,1721701854001,-1044.28,0.00013698,2]
[332951616,1721701854011,-1044.28,0.00013698,2]
[332951617,1721701854020,-1044.28,0.00013698,2]
[332951618,1721701854030,-1044.28,0.00013698,2]
[332951619,1721701854039,-1044.28,0.00013698,2]
[332951620,1721701854049,-1044.28,0.00013698,2]
[332951621,1721701854058,-1044.28,0.00013698,2]
[332951622,1721701854068,-1044.28,0.00013698,2]
[332951623,1721701854078,-1044.28,0.00013698,2]
[332951624,1721701854087,-1044.28,0.00013698,2]
[332951625,1721701854096,-1044.28,0.00013698,2]
[332951626,1721701854105,-1044.28,0.00013698,2]
[332951627,1721701854115,-1044.28,0.00013698,2]
[332951628,1721701854124,-1044.28,0.00013698,2]
[332951629,1721701854134,-1044.28,0.00013698,2]
[332951630,1721701854143,-1044.28,0.00013698,2]
[332951631,1721701854152,-1044.28,0.00013698,2]
[332951632,1721701854162,-1044.28,0.00013698,2]
[332951633,1721701854171,-1044.28,0.00013698,2]
[332951634,1721701854181,-1044.28,0.00013698,2]
[332951635,1721701854190,-1044.28,0.00013698,2]
[332951636,1721701854200,-1044.28,0.00013698,2]
[332951637,1721701854209,-1044.48402005,0.00013698,2]
[332951638,1721701854218,-203.10785562,0.00013698,2]
[332951639,1721701854228,-500.0,0.00013698,2]
[332951640,1721701854237,-155.30204591,0.00013698,2]
[332951641,1721701854246,-172.1718347,0.00013698,2]
[332951642,1721701854257,-236.15174042,0.00013698,2]
[332951643,1721701854266,-506.42562899,0.00013698,2]
[332951644,1721701854276,-164.55801111,0.00013698,2]
[332951645,1721701854285,-503.88497459,0.00013698,2]
[332951646,1721701854294,-500.0,0.00013698,2]
[332951647,1721701854304,-527.29550291,0.00013698,2]
[332951648,1721701854314,-504.28621617,0.00013698,2]
[332951649,1721701854324,-502.86446984,0.00013698,2]
[332951650,1721701854333,-505.7536729,0.00013698,2]
[332951651,1721701854342,-503.78107812,0.00013698,2]
[332951652,1721701854352,-502.94254735,0.00013698,2]
[332951653,1721701854362,-511.87856239,0.00013698,2]
[332951654,1721701854371,-531.0558209,0.00013698,2]
[332951655,1721701854530,-179.68013756,0.00013698,2]
[332951656,1721701854541,-623.83052372,0.00013698,2]
[332951657,1721701854550,-502.88301326,0.00013698,2]
[332951658,1721701854559,-217.95097535,0.00013698,2]
[332951659,1721701854569,-501.87629994,0.00013698,2]
[332951660,1721701854578,-1456.55,0.00013698,2]
[332951661,1721701854587,-361.04458555,0.00013698,2]
[332951662,1721701854597,-591.48682504,0.00013698,2]
[332951663,1721701854610,-500.0,0.00013698,2]
[332951664,1721701854619,-504.88739303,0.00013698,2]
[332951665,1721701854629,-503.27745469,0.00013698,2]
[332951666,1721701854638,-527.27560545,0.00013698,2]
[332951667,1721701854649,-500.0,0.00013698,2]
[332951668,1721701854659,-3658.45,0.00013698,2]
[332951669,1721701854668,-3658.45,0.00013698,2]
[332951670,1721701854679,-3658.45,0.00013698,2]
[332951671,1721701854690,-3658.45,0.00013698,2]
[332951672,1721701854699,-3658.45,0.00013698,2]
[332951673,1721701854709,-3658.45,0.00013698,2]
[332951674,1721701854719,-3658.45,0.00013698,2]
[332951675,1721701854728,-3658.45,0.00013698,2]
[332951676,1721701854738,-3658.45,0.00013698,2]
[332951677,1721701854747,-3658.45,0.00013698,2]
[332951678,1721701854757,-3658.45,0.00013698,2]
[332951679,1721701854767,-3658.45,0.00013698,2]
[332951680,1721701854777,-3658.45,0.00013698,2]
[332951681,1721701854786,-3658.45,0.00013698,2]
[332951682,1721701854796,-3658.45,0.00013698,2]
[332951683,1721701854805,-3658.45,0.00013698,2]
[332951684,1721701854814,-506.04753469,0.00013698,2]
[332951685,1721701854824,-502.4392292,0.00013698,2]
[332951686,1721701854833,-3658.45,0.00013698,2]
[332951687,1721701854843,-3658.45,0.00013698,2]
[332951688,1721701854852,-3658.45,0.00013698,2]
[332951689,1721701854861,-3658.45,0.00013698,2]
[332951690,1721701854871,-3658.45,0.00013698,2]
[332951691,1721701854881,-3658.45,0.00013698,2]
[332951692,1721701854891,-3658.45,0.00013698,2]
[332951693,1721701854900,-3658.64071244,0.00013698,2]
[332951694,1721701854909,-509.8230437,0.00013698,2]
[332951695,1721701854919,-617.19980692,0.00013698,2]
[332951696,1721701854928,-505.38172751,0.00013698,2]
[332951697,1721701854937,-1818.92,0.00013698,2]
[332951698,1721701854947,-500.0,0.00013698,2]
[332951699,1721701854956,-500.0,0.00013698,2]
[332951700,1721701854965,-500.0,0.00013698,2]
[332951701,1721701854975,-500.0,0.00013698,2]
[332951702,1721701854984,-500.0,0.00013698,2]
[332951703,1721701854993,-649.54419825,0.00013698,2]
[332951704,1721701855003,-507.40602451,0.00013698,2]
[332951705,1721701855013,-505.81697255,0.00013698,2]
[332951706,1721701855022,-500.0,0.00013698,2]
[332951707,1721701855031,-502.43599013,0.00013698,2]
[332951708,1721701855042,-502.8859858,0.00013698,2]
[332951709,1721701855051,-506.04610155,0.00013698,2]
[332951710,1721701855061,-504.8389086,0.00013698,2]
[332951711,1721701855070,-506.38885137,0.00013698,2]
[332951712,1721701855080,-546.29358891,0.00013698,2]
[332951713,1721701855089,-3149.04,0.00013698,2]
[332951714,1721701855098,-500.0,0.00013698,2]
[332951715,1721701855108,-504.15470371,0.00013698,2]
[332951716,1721701855118,-504.2048224,0.00013698,2]
[332951717,1721701855127,-1264.08,0.00013698,2]
[332951718,1721701855137,-2299.76,0.00013698,2]
[332951719,1721701855146,-567.44539764,0.00013698,2]
[332951720,1721701855155,-504.97815857,0.00013698,2]
[332951721,1721701855164,-502.15270878,0.00013698,2]
[332951722,1721701855174,-505.22529207,0.00013698,2]
[332951723,1721701855183,-502.69370862,0.00013698,2]
[332951724,1721701855192,-500.0,0.00013698,2]
[332951725,1721701855201,-562.25023741,0.00013698,2]
[332951726,1721701855211,-595.32751823,0.00013698,2]
[332951727,1721701855220,-500.0,0.00013698,2]
[332951728,1721701855230,-533.07690688,0.00013698,2]
[332951729,1721701855239,-511.306625,0.00013698,2]
[332951730,1721701855248,-502.58804866,0.00013698,2]
[332951731,1721701855258,-505.32103007,0.00013698,2]
[332951732,1721701855267,-549.0216025,0.00013698,2]
[332951733,1721701855277,-503.68022233,0.00013698,2]
[332951734,1721701855287,-504.91756145,0.00013698,2]
[332951735,1721701855296,-567.57243039,0.00013698,2]
[332951736,1721701855305,-500.0,0.00013698,2]
[332951737,1721701855315,-500.0,0.00013698,2]
[332951738,1721701855324,-412.01637107,0.00013698,2]
[332951739,1721701855333,-1636.02,0.00013698,2]
[332951740,1721701855342,-505.5950172,0.00013698,2]
[332951741,1721701855352,-500.0,0.00013698,2]
[332951742,1721701855361,-500.0,0.00013698,2]
[332951743,1721701855371,-500.0,0.00013698,2]
[332951744,1721701855380,-500.0,0.00013698,2]
[332951745,1721701855390,-500.0,0.00013698,2]
[332951746,1721701855400,-500.0,0.00013698,2]
[332951747,1721701855409,-500.0,0.00013698,2]
[332951748,1721701855419,-500.0,0.00013698,2]
[332951749,1721701855428,-500.0,0.00013698,2]
[332951750,1721701855437,-500.0,0.00013698,2]
[332951751,1721701855447,-500.0,0.00013698,2]
[332951752,1721701855456,-500.0,0.00013698,2]
[332951753,1721701855466,-500.0,0.00013698,2]
[332951754,1721701855475,-500.0,0.00013698,2]
[332951755,1721701855485,-500.0,0.00013698,2]
[332951756,1721701855494,-500.0,0.00013698,2]
[332951757,1721701855504,-359.8846682,0.00013698,2]
[332951758,1721701855513,-603.62786052,0.00013698,2]
[332951759,1721701855522,-507.60657134,0.00013698,2]
[332951760,1721701855531,-500.0,0.00013698,2]
[332951761,1721701855541,-504.53315113,0.00013698,2]
[332951762,1721701855550,-507.43242336,0.00013698,2]
[332951763,1721701855560,-500.0,0.00013698,2]
[332951764,1721701855569,-515.58999126,0.00013698,2]
[332951765,1721701855579,-502.24096506,0.00013698,2]
[332951766,1721701855588,-500.0,0.00013698,2]
[332951767,1721701855597,-516.63868273,0.00013698,2]
[332951768,1721701855609,-502.99848281,0.00013698,2]
[332951769,1721701855618,-500.0,0.00013698,2]
[332951770,1721701855627,-501.48837722,0.00013698,2]
[332951771,1721701855637,-504.46531402,0.00013698,2]
[332951772,1721701855647,-508.71074483,0.00013698,2]
[332951773,1721701855658,-503.50531291,0.00013698,2]
[332951774,1721701855667,-501.23727606,0.00013698,2]
[332951775,1721701855676,-502.08748162,0.00013698,2]
[332951776,1721701855694,-504.51965076,0.00013698,2]
[332951777,1721701855711,-515.3275743,0.00013698,2]
[332951778,1721701855727,-609.96306486,0.00013698,2]
[332951779,1721701855740,-501.10525209,0.00013698,2]
[332951780,1721701855756,-502.32143254,0.00013698,2]
[332951781,1721701855772,-500.0,0.00013698,2]
[332951782,1721701855787,-504.17124914,0.00013698,2]
[332951783,1721701855801,-625.64262197,0.00013698,2]
[332951784,1721701855819,-506.39258641,0.00013698,2]
[332951785,1721701855834,-270.65236465,0.00013698,2]
[332951786,1721701855847,-503.77242557,0.00013698,2]
[332951787,1721701855862,-568.33048213,0.00013698,2]
[332951788,1721701855878,-506.71959829,0.00013698,2]
[332951789,1721701855893,-500.0,0.00013698,2]
[332951790,1721701855904,-500.0,0.00013698,2]
[332951791,1721701855918,-500.0,0.00013698,2]
[332951792,1721701855932,-500.0,0.00013698,2]
[332951793,1721701855948,-500.0,0.00013698,2]
[332951794,1721701855963,-222.01,0.00013698,2]
[332951795,1721701855978,-512.21963942,0.00013698,2]
[332951796,1721701855994,-502.79700552,0.00013698,2]
[332951797,1721701856007,-541.46077823,0.00013698,2]
[332951798,1721701856018,-531.40514865,0.00013698,2]
[332951799,1721701856029,-500.0,0.00013698,2]
[332951800,1721701856043,-506.05486562,0.00013698,2]
[332951801,1721701856057,-502.64861393,0.00013698,2]
[332951802,1721701856071,-500.0,0.00013698,2]
[332951803,1721701856084,-500.0,0.00013698,2]
[332951804,1721701856096,-509.87078312,0.00013698,2]
[332951805,1721701856110,-504.32760744,0.00013698,2]
[332951806,1721701856122,-502.76470705,0.00013698,2]
[332951807,1721701856134,-505.25422692,0.00013698,2]
[332951808,1721701856147,-443.49643901,0.00013698,2]
[332951809,1721701856159,-504.4976735,0.00013698,2]
[332951810,1721701856171,-507.51520573,0.00013698,2]
[332951811,1721701856184,-501.26304001,0.00013698,2]
[332951812,1721701856197,-500.0,0.00013698,2]
[332951813,1721701856210,-500.0,0.00013698,2]
[332951814,1721701856223,-511.29454103,0.00013698,2]
[332951815,1721701856236,-500.0,0.00013698,2]
[332951816,1721701856249,-508.85655427,0.00013698,2]
[332951817,1721701856261,-504.67044685,0.00013698,2]
[332951818,1721701856274,-192.93950078,0.00013698,2]
[332951819,1721701856287,-504.78745707,0.00013698,2]
[332951820,1721701856300,-431.50993628,0.00013698,2]
[332951821,1721701856312,-506.50856672,0.00013698,2]
[332951822,1721701856325,-500.0,0.00013698,2]
[332951823,1721701856338,-610.52508144,0.00013698,2]
[332951824,1721701856351,-173.71045903,0.00013698,2]
[332951825,1721701856363,-507.13124252,0.00013698,2]
[332951826,1721701856380,-284.44539626,0.00013698,2]
[332951827,1721701856392,-607.94421165,0.00013698,2]
[332951828,1721701856405,-501.63068256,0.00013698,2]
[332951829,1721701856418,-504.42774824,0.00013698,2]
[332951830,1721701856430,-524.81430342,0.00013698,2]
[332951831,1721701856444,-537.88333374,0.00013698,2]
[332951832,1721701856457,-505.4182689,0.00013698,2]
[332951833,1721701856469,-503.70302886,0.00013698,2]
[332951834,1721701856482,-506.03322643,0.00013698,2]
[332951835,1721701856494,-504.49189868,0.00013698,2]
[332951836,1721701856507,-503.01294854,0.00013698,2]
[332951837,1721701856520,-500.89856589,0.00013698,2]
[332951838,1721701856533,-504.01703789,0.00013698,2]
[332951839,1721701856546,-507.77704803,0.00013698,2]
[332951840,1721701856558,-504.83902437,0.00013698,2]
[332951841,1721701856571,-502.69622536,0.00013698,2]
[332951842,1721701856583,-511.18733262,0.00013698,2]
[332951843,1721701856596,-500.0,0.00013698,2]
[332951844,1721701856612,-240.40024789,0.00013698,2]
[332951845,1721701856625,-511.12507642,0.00013698,2]
[332951846,1721701856639,-500.0,0.00013698,2]
[332951847,1721701856652,-500.0,0.00013698,2]
[332951848,1721701856665,-505.81146889,0.00013698,2]
[332951849,1721701856679,-500.0,0.00013698,2]
[332951850,1721701856693,-500.0,0.00013698,2]
[332951851,1721701856706,-500.0,0.00013698,2]
[332951852,1721701856719,-500.0,0.00013698,2]
[332951853,1721701856731,-500.0,0.00013698,2]
[332951854,1721701856744,-500.0,0.00013698,2]
[332951855,1721701856757,-502.38815037,0.00013698,2]
[332951856,1721701856770,-504.91903717,0.00013698,2]
[332951857,1721701856783,-503.1082569,0.00013698,2]
[332951858,1721701856796,-502.99943835,0.00013698,2]
[332951859,1721701856808,-541.85349712,0.00013698,2]
[332951860,1721701856820,-502.1761106,0.00013698,2]
[332951861,1721701856833,-252.99997954,0.00013698,2]
[332951862,1721701856846,-515.67965136,0.00013698,2]
[332951863,1721701856858,-507.26507927,0.00013698,2]